[Event "Live Chess"]
[Site "Chess.com"]
[Date "2024.06.02"]
[Round "-"]
[White "TJ-W"]
[Black "Dashman93"]
[Result "0-1"]
[WhiteElo "1574"]
[BlackElo "2124"]
[TimeControl "300"]
[EndTime "6:11:05 PDT"]
[Termination "Dashman93 won on time"]

1. e4 {[%clk 0:04:57.8]} 1... e5 {[%clk 0:04:59.1]} 2. Nf3 {[%clk 0:04:56.1]}
2... Nc6 {[%clk 0:04:58.4]} 3. Bc4 {[%clk 0:04:52.6]} 3... Nf6 {[%clk 0:04:57]}
4. Ng5 {[%clk 0:04:50.7]} 4... d5 {[%clk 0:04:55.8]} 5. exd5 {[%clk 0:04:50.6]}
5... b5 {[%clk 0:04:55.1]} 6. Bxb5 {[%clk 0:04:20.7]} 6... Qxd5 {[%clk
0:04:50.7]} 7. Bxc6+ {[%clk 0:04:19.5]} 7... Qxc6 {[%clk 0:04:49.4]} 8. O-O
{[%clk 0:04:17.8]} 8... Bg4 {[%clk 0:04:44.7]} 9. f3 {[%clk 0:04:07.2]} 9...
Bc5+ {[%clk 0:04:43]} 10. Kh1 {[%clk 0:04:03.6]} 10... Bf5 {[%clk 0:04:41.4]}
11. d3 {[%clk 0:03:58.4]} 11... O-O {[%clk 0:04:40]} 12. Nc3 {[%clk 0:03:49.1]}
12... Bd4 {[%clk 0:04:37.3]} 13. Nce4 {[%clk 0:03:43.5]} 13... Nd5 {[%clk
0:04:35.3]} 14. g4 {[%clk 0:03:25.2]} 14... Bg6 {[%clk 0:04:33.2]} 15. h4 {[%clk
0:03:20.7]} 15... h6 {[%clk 0:04:31.8]} 16. Nh3 {[%clk 0:03:12.3]} 16... f5
{[%clk 0:04:30.7]} 17. gxf5 {[%clk 0:03:03]} 17... Bxf5 {[%clk 0:04:30.6]} 18.
Nhf2 {[%clk 0:02:48.5]} 18... Qg6 {[%clk 0:04:22.2]} 19. Ng4 {[%clk 0:02:29.5]}
19... Qh5 {[%clk 0:04:19.6]} 20. Nxh6+ {[%clk 0:02:07]} 20... gxh6 {[%clk
0:04:15.4]} 21. Qe1 {[%clk 0:01:57.1]} 21... Kh7 {[%clk 0:04:11.5]} 22. c4
{[%clk 0:01:48.7]} 22... Bxe4 {[%clk 0:04:00.9]} 23. Qxe4+ {[%clk 0:01:34.2]}
23... Qf5 {[%clk 0:03:51.2]} 24. Qxf5+ {[%clk 0:01:26.1]} 24... Rxf5 {[%clk
0:03:50.3]} 25. cxd5 {[%clk 0:01:23.7]} 25... Rh5 {[%clk 0:03:47.8]} 26. Kh2
{[%clk 0:01:11.5]} 26... Rg8 {[%clk 0:03:43.8]} 27. Kh3 {[%clk 0:01:06.6]} 27...
e4 {[%clk 0:03:37.1]} 28. fxe4 {[%clk 0:00:47.5]} 28... Be5 {[%clk 0:03:35.9]}
29. Bf4 {[%clk 0:00:34.8]} 29... Bxb2 {[%clk 0:03:30]} 30. Rab1 {[%clk
0:00:31.4]} 30... Bd4 {[%clk 0:03:29.5]} 31. Rb7 {[%clk 0:00:29.1]} 31... Bb6
{[%clk 0:03:25.1]} 32. Be5 {[%clk 0:00:21.9]} 32... Rxe5 {[%clk 0:03:22.3]} 33.
Rf7+ {[%clk 0:00:18.5]} 33... Kh8 {[%clk 0:03:21.1]} 34. a4 {[%clk 0:00:14.1]}
34... Rg7 {[%clk 0:03:17.1]} 35. Rb8+ {[%clk 0:00:10]} 35... Kh7 {[%clk
0:03:15.4]} 36. Rxg7+ {[%clk 0:00:08.8]} 36... Kxg7 {[%clk 0:03:14.1]} 37. Rd8
{[%clk 0:00:07.5]} 37... Re7 {[%clk 0:03:12.8]} 38. d4 {[%clk 0:00:01.4]} 38...
Rxe4 {[%clk 0:03:11.5]} 39. d6 {[%clk 0:00:01.3]} 39... Rxd4 {[%clk 0:03:09.9]}
0-1

[Event "Live Chess"]
[Site "Chess.com"]
[Date "2024.06.02"]
[Round "-"]
[White "SavagePawn7"]
[Black "GEMdzq"]
[Result "0-1"]
[WhiteElo "678"]
[BlackElo "2296"]
[TimeControl "300"]
[EndTime "6:11:07 PDT"]
[Termination "GEMdzq won by resignation"]

1. e4 {[%clk 0:04:55.7]} 1... Nf6 {[%clk 0:04:57.6]} 2. Nc3 {[%clk 0:04:50.8]}
2... d6 {[%clk 0:04:55.3]} 3. d4 {[%clk 0:04:45.6]} 3... g6 {[%clk 0:04:54.4]}
4. Bg5 {[%clk 0:04:43.4]} 4... h6 {[%clk 0:04:52.7]} 5. Bxf6 {[%clk 0:04:27.2]}
5... exf6 {[%clk 0:04:52.6]} 6. Bc4 {[%clk 0:04:20.1]} 6... Bg7 {[%clk 0:04:51]}
7. Nf3 {[%clk 0:04:14.4]} 7... O-O {[%clk 0:04:48.9]} 8. O-O {[%clk 0:04:12.8]}
8... f5 {[%clk 0:04:44.8]} 9. exf5 {[%clk 0:04:09.4]} 9... Bxf5 {[%clk
0:04:44.7]} 10. Bd3 {[%clk 0:03:51.8]} 10... Bg4 {[%clk 0:04:41.9]} 11. h3
{[%clk 0:03:48]} 11... Bxf3 {[%clk 0:04:39.3]} 12. Qxf3 {[%clk 0:03:45.5]} 12...
Nc6 {[%clk 0:04:38.1]} 13. Ne2 {[%clk 0:03:19.7]} 13... Nxd4 {[%clk 0:04:31.6]}
14. Nxd4 {[%clk 0:03:18.2]} 14... Bxd4 {[%clk 0:04:30.8]} 15. c3 {[%clk
0:03:16.1]} 15... Bg7 {[%clk 0:04:28.3]} 16. Qxb7 {[%clk 0:03:10.6]} 16... Rb8
{[%clk 0:04:27.1]} 17. Qd5 {[%clk 0:02:59.8]} 17... Rxb2 {[%clk 0:04:26.1]} 18.
Rab1 {[%clk 0:02:56.6]} 18... Rd2 {[%clk 0:04:23.6]} 19. Rfd1 {[%clk 0:02:46.3]}
19... Rxd1+ {[%clk 0:04:22]} 20. Rxd1 {[%clk 0:02:44.9]} 20... Qf6 {[%clk
0:04:17.6]} 21. Rc1 {[%clk 0:02:27.3]} 21... Qf4 {[%clk 0:04:13.6]} 22. Qxd6
{[%clk 0:02:17]} 22... Qxd6 {[%clk 0:04:10.5]} 0-1

[Event "Live Chess"]
[Site "Chess.com"]
[Date "2024.06.02"]
[Round "-"]
[White "beltmanjb"]
[Black "BishopofWells"]
[Result "1-0"]
[WhiteElo "1694"]
[BlackElo "1552"]
[TimeControl "300"]
[EndTime "6:11:38 PDT"]
[Termination "beltmanjb won by checkmate"]

1. d4 {[%clk 0:04:57.8]} 1... d5 {[%clk 0:04:58.2]} 2. c4 {[%clk 0:04:57.3]}
2... e6 {[%clk 0:04:57.5]} 3. Nf3 {[%clk 0:04:56.4]} 3... Nf6 {[%clk 0:04:56.7]}
4. g3 {[%clk 0:04:56]} 4... h6 {[%clk 0:04:54.8]} 5. Bg2 {[%clk 0:04:54.5]} 5...
c6 {[%clk 0:04:53.3]} 6. O-O {[%clk 0:04:52.9]} 6... Nbd7 {[%clk 0:04:52.2]} 7.
Nc3 {[%clk 0:04:51.5]} 7... dxc4 {[%clk 0:04:50.6]} 8. Nd2 {[%clk 0:04:44.9]}
8... Nb6 {[%clk 0:04:45.4]} 9. a4 {[%clk 0:04:42.6]} 9... a5 {[%clk 0:04:42.9]}
10. b3 {[%clk 0:04:38.8]} 10... cxb3 {[%clk 0:04:39.7]} 11. Qxb3 {[%clk
0:04:37.9]} 11... Be7 {[%clk 0:04:35.1]} 12. Ba3 {[%clk 0:04:33.3]} 12... O-O
{[%clk 0:04:31.7]} 13. Rfd1 {[%clk 0:04:29.5]} 13... Nbd5 {[%clk 0:04:20.6]} 14.
Nde4 {[%clk 0:04:19.9]} 14... Nxe4 {[%clk 0:04:12.8]} 15. Bxe4 {[%clk
0:04:17.2]} 15... Bxa3 {[%clk 0:04:09]} 16. Qxa3 {[%clk 0:04:11.9]} 16... Nxc3
{[%clk 0:04:07]} 17. Qxc3 {[%clk 0:04:11.5]} 17... Bd7 {[%clk 0:04:05.3]} 18.
Rab1 {[%clk 0:04:05.5]} 18... Qc7 {[%clk 0:04:03.5]} 19. Qc5 {[%clk 0:03:54]}
19... Rfb8 {[%clk 0:03:56.2]} 20. d5 {[%clk 0:03:31.8]} 20... b6 {[%clk
0:03:38.4]} 21. d6 {[%clk 0:03:25.8]} 21... Qc8 {[%clk 0:03:25.7]} 22. Qc2
{[%clk 0:03:23.3]} 22... Qd8 {[%clk 0:03:25.2]} 23. Rdc1 {[%clk 0:02:43.6]}
23... Rc8 {[%clk 0:02:56.7]} 24. Qb2 {[%clk 0:02:37]} 24... Rab8 {[%clk
0:02:55.5]} 25. Rc3 {[%clk 0:02:22.3]} 25... c5 {[%clk 0:02:53.9]} 26. Rb3
{[%clk 0:02:02.5]} 26... Bc6 {[%clk 0:02:49.2]} 27. Bc2 {[%clk 0:01:50.2]} 27...
Qxd6 {[%clk 0:02:33.4]} 28. Rxb6 {[%clk 0:01:47.8]} 28... Qd5 {[%clk 0:02:19.4]}
29. e4 {[%clk 0:01:40.5]} 29... Rxb6 {[%clk 0:02:14.8]} 30. Qxb6 {[%clk
0:01:30.8]} 30... Qd2 {[%clk 0:02:13.8]} 31. Qa6 {[%clk 0:01:15.5]} 31... Rd8
{[%clk 0:02:06.2]} 32. Rd1 {[%clk 0:01:02.3]} 32... Qxd1+ {[%clk 0:01:53.2]} 33.
Bxd1 {[%clk 0:01:00.4]} 33... Rxd1+ {[%clk 0:01:51.9]} 34. Kg2 {[%clk
0:00:58.7]} 34... Bxa4 {[%clk 0:01:50.2]} 35. Qxa5 {[%clk 0:00:55.1]} 35... Bb3
{[%clk 0:01:48.3]} 36. Qxc5 {[%clk 0:00:53]} 36... Rd8 {[%clk 0:01:36.3]} 37.
Qb6 {[%clk 0:00:48.5]} 37... Rd4 {[%clk 0:01:29.3]} 38. Qxb3 {[%clk 0:00:46.8]}
38... Rxe4 {[%clk 0:01:28.1]} 39. Qb8+ {[%clk 0:00:44.1]} 39... Kh7 {[%clk
0:01:27.1]} 40. Qb1 {[%clk 0:00:38.1]} 40... f5 {[%clk 0:01:24.4]} 41. Kf3
{[%clk 0:00:33.6]} 41... Re5 {[%clk 0:01:16.2]} 42. Qb2 {[%clk 0:00:30.9]} 42...
Rd5 {[%clk 0:01:14.7]} 43. Qb6 {[%clk 0:00:28.7]} 43... e5 {[%clk 0:01:06.2]}
44. Qe6 {[%clk 0:00:23.4]} 44... e4+ {[%clk 0:01:03.8]} 45. Kf4 {[%clk
0:00:20.4]} 45... Rb5 {[%clk 0:00:55.8]} 46. h4 {[%clk 0:00:17.4]} 46... Ra5
{[%clk 0:00:52.8]} 47. h5 {[%clk 0:00:16.3]} 47... Ra8 {[%clk 0:00:46.1]} 48.
Qxf5+ {[%clk 0:00:14.7]} 48... Kh8 {[%clk 0:00:43.3]} 49. Qxe4 {[%clk
0:00:14.1]} 49... Rf8+ {[%clk 0:00:39.5]} 50. Kg4 {[%clk 0:00:13.2]} 50... Kg8
{[%clk 0:00:38.2]} 51. f4 {[%clk 0:00:12.6]} 51... Rf7 {[%clk 0:00:36.2]} 52. f5
{[%clk 0:00:12.1]} 52... Kh8 {[%clk 0:00:32.3]} 53. Qe8+ {[%clk 0:00:10.7]}
53... Kh7 {[%clk 0:00:27.7]} 54. Qxf7 {[%clk 0:00:09.8]} 54... Kh8 {[%clk
0:00:25.7]} 55. f6 {[%clk 0:00:08.8]} 55... gxf6 {[%clk 0:00:21.9]} 56. Qxf6+
{[%clk 0:00:08.2]} 56... Kg8 {[%clk 0:00:20.8]} 57. Qe7 {[%clk 0:00:06.9]} 57...
Kh8 {[%clk 0:00:18.5]} 58. Kf5 {[%clk 0:00:06.6]} 58... Kg8 {[%clk 0:00:17.5]}
59. Kg6 {[%clk 0:00:06.3]} 59... Kh8 {[%clk 0:00:16.8]} 60. Qg7# {[%clk
0:00:05.6]} 1-0

[Event "Live Chess"]
[Site "Chess.com"]
[Date "2024.06.02"]
[Round "-"]
[White "KeithArkell"]
[Black "slava_ukr"]
[Result "1-0"]
[WhiteElo "2426"]
[BlackElo "2331"]
[TimeControl "300"]
[EndTime "6:11:47 PDT"]
[Termination "KeithArkell won on time"]

1. d4 {[%clk 0:04:54.2]} 1... d5 {[%clk 0:04:59.1]} 2. Nf3 {[%clk 0:04:53.4]}
2... Bf5 {[%clk 0:04:57.6]} 3. c4 {[%clk 0:04:52.7]} 3... e6 {[%clk 0:04:57.2]}
4. cxd5 {[%clk 0:04:51.3]} 4... exd5 {[%clk 0:04:56.4]} 5. Nc3 {[%clk
0:04:50.7]} 5... c6 {[%clk 0:04:55.6]} 6. Bg5 {[%clk 0:04:49.3]} 6... Be7 {[%clk
0:04:54]} 7. Bxe7 {[%clk 0:04:48.1]} 7... Qxe7 {[%clk 0:04:53.3]} 8. e3 {[%clk
0:04:47.7]} 8... Nf6 {[%clk 0:04:52.5]} 9. Bd3 {[%clk 0:04:46.7]} 9... Bxd3
{[%clk 0:04:51.1]} 10. Qxd3 {[%clk 0:04:46]} 10... O-O {[%clk 0:04:50.4]} 11.
O-O {[%clk 0:04:45.1]} 11... Nbd7 {[%clk 0:04:49.6]} 12. b4 {[%clk 0:04:42.8]}
12... Ne4 {[%clk 0:04:48.6]} 13. Rab1 {[%clk 0:04:39.9]} 13... a6 {[%clk
0:04:45.8]} 14. Qc2 {[%clk 0:04:38.2]} 14... f5 {[%clk 0:04:37.2]} 15. g3 {[%clk
0:04:37.2]} 15... g5 {[%clk 0:04:27.4]} 16. Rfe1 {[%clk 0:04:35.4]} 16... Ndf6
{[%clk 0:04:21.3]} 17. Ne5 {[%clk 0:04:33.7]} 17... Rae8 {[%clk 0:04:07.6]} 18.
Na4 {[%clk 0:04:19.5]} 18... Nd7 {[%clk 0:03:48.2]} 19. Nxd7 {[%clk 0:04:14.5]}
19... Qxd7 {[%clk 0:03:47.3]} 20. Nc5 {[%clk 0:04:13.5]} 20... Qf7 {[%clk
0:03:33.4]} 21. f3 {[%clk 0:04:05.8]} 21... Nd6 {[%clk 0:03:31.5]} 22. Kf2
{[%clk 0:04:02.6]} 22... Qh5 {[%clk 0:03:26.2]} 23. h3 {[%clk 0:03:35.3]} 23...
g4 {[%clk 0:03:16.3]} 24. h4 {[%clk 0:03:28.5]} 24... gxf3 {[%clk 0:03:14.5]}
25. a4 {[%clk 0:03:20.5]} 25... Ne4+ {[%clk 0:03:13.4]} 26. Nxe4 {[%clk
0:03:19.7]} 26... fxe4 {[%clk 0:03:10.9]} 27. b5 {[%clk 0:03:19.1]} 27... axb5
{[%clk 0:03:04]} 28. axb5 {[%clk 0:03:19]} 28... Kh8 {[%clk 0:02:51.6]} 29. bxc6
{[%clk 0:03:02.9]} 29... bxc6 {[%clk 0:02:50.2]} 30. Qxc6 {[%clk 0:02:57.1]}
30... Rc8 {[%clk 0:02:46]} 31. Qa4 {[%clk 0:02:55.9]} 31... Rc4 {[%clk
0:02:36.2]} 32. Qb3 {[%clk 0:02:53.7]} 32... Rfc8 {[%clk 0:02:34.1]} 33. Rb2
{[%clk 0:02:51.2]} 33... Qg4 {[%clk 0:02:02.2]} 34. Rh1 {[%clk 0:02:47.1]} 34...
Qd7 {[%clk 0:01:58.4]} 35. h5 {[%clk 0:02:19.3]} 35... Qc6 {[%clk 0:01:41.9]}
36. g4 {[%clk 0:02:07.2]} 36... Rc3 {[%clk 0:01:31.1]} 37. Qa2 {[%clk
0:02:04.6]} 37... h6 {[%clk 0:01:07.6]} 38. Rd2 {[%clk 0:01:46.7]} 38... Rxe3
{[%clk 0:00:45]} 39. Kxe3 {[%clk 0:01:45.1]} 39... Qc3+ {[%clk 0:00:39.6]} 40.
Kf4 {[%clk 0:01:44.4]} 40... Rf8+ {[%clk 0:00:30.8]} 41. Ke5 {[%clk 0:00:36.6]}
41... Qc7+ {[%clk 0:00:23.5]} 42. Kxd5 {[%clk 0:00:35.6]} 42... e3 {[%clk
0:00:20.3]} 43. Qa6 {[%clk 0:00:29.9]} 43... Qf7+ {[%clk 0:00:10.1]} 44. Ke4
{[%clk 0:00:24.8]} 44... Re8+ {[%clk 0:00:08.5]} 45. Kd3 {[%clk 0:00:23.6]}
45... Qh7+ {[%clk 0:00:03.3]} 46. Kc3 {[%clk 0:00:19.6]} 46... exd2 {[%clk
0:00:01.7]} 47. Qf6+ {[%clk 0:00:19.1]} 47... Kg8 {[%clk 0:00:01]} 48. Rd1
{[%clk 0:00:06.4]} 48... Rc8+ {[%clk 0:00:00.4]} 49. Kb4 {[%clk 0:00:05.1]} 1-0

[Event "Live Chess"]
[Site "Chess.com"]
[Date "2024.06.02"]
[Round "-"]
[White "oscalik"]
[Black "booktrunk"]
[Result "1-0"]
[WhiteElo "2233"]
[BlackElo "1494"]
[TimeControl "300"]
[EndTime "6:11:57 PDT"]
[Termination "oscalik won by resignation"]

1. e4 {[%clk 0:04:57.6]} 1... b6 {[%clk 0:04:55.4]} 2. Bc4 {[%clk 0:04:55.4]}
2... e6 {[%clk 0:04:46.6]} 3. Nf3 {[%clk 0:04:53.1]} 3... h6 {[%clk 0:04:42]} 4.
O-O {[%clk 0:04:51.6]} 4... Nf6 {[%clk 0:04:39.6]} 5. Re1 {[%clk 0:04:50.3]}
5... Bb7 {[%clk 0:04:38.3]} 6. e5 {[%clk 0:04:49]} 6... Nd5 {[%clk 0:04:36.3]}
7. d4 {[%clk 0:04:47.4]} 7... a6 {[%clk 0:04:33.9]} 8. a4 {[%clk 0:04:45.8]}
8... Nc6 {[%clk 0:04:30.7]} 9. Nbd2 {[%clk 0:04:44.1]} 9... Na5 {[%clk
0:04:29.4]} 10. Ba2 {[%clk 0:04:43.1]} 10... Bb4 {[%clk 0:04:22.3]} 11. c3
{[%clk 0:04:41.7]} 11... Be7 {[%clk 0:04:05.9]} 12. Ne4 {[%clk 0:04:40.3]} 12...
O-O {[%clk 0:03:57.6]} 13. Bd2 {[%clk 0:04:32]} 13... f5 {[%clk 0:03:56.2]} 14.
exf6 {[%clk 0:04:23.9]} 14... Nxf6 {[%clk 0:03:53.2]} 15. Bb1 {[%clk 0:04:04.8]}
15... Nxe4 {[%clk 0:03:50.8]} 16. Bxe4 {[%clk 0:04:03.1]} 16... Bxe4 {[%clk
0:03:49.3]} 17. Rxe4 {[%clk 0:04:02.3]} 17... Bf6 {[%clk 0:03:46.1]} 18. Qe2
{[%clk 0:03:59.2]} 18... Nc6 {[%clk 0:03:41.6]} 19. Re1 {[%clk 0:03:57.4]} 19...
Re8 {[%clk 0:03:26]} 20. Ne5 {[%clk 0:03:56.2]} 20... Nxe5 {[%clk 0:03:23.6]}
21. dxe5 {[%clk 0:03:55.1]} 21... Bg5 {[%clk 0:03:21.9]} 22. f4 {[%clk
0:03:52.9]} 22... Be7 {[%clk 0:03:16.4]} 23. g4 {[%clk 0:03:49.3]} 23... Bc5+
{[%clk 0:03:14.7]} 24. Kg2 {[%clk 0:03:47.7]} 24... Qh4 {[%clk 0:03:11.2]} 25.
b4 {[%clk 0:03:43.4]} 25... Be7 {[%clk 0:03:08.2]} 26. f5 {[%clk 0:03:41.3]}
26... exf5 {[%clk 0:03:04.1]} 27. gxf5 {[%clk 0:03:40.2]} 27... Qxe4+ {[%clk
0:02:18.3]} 28. Qxe4 {[%clk 0:03:36.5]} 28... c6 {[%clk 0:02:14.3]} 29. Qg4
{[%clk 0:03:33.2]} 29... c5 {[%clk 0:02:07.8]} 30. Bxh6 {[%clk 0:03:31.5]} 30...
Bf8 {[%clk 0:02:04.8]} 31. f6 {[%clk 0:03:30.1]} 31... cxb4 {[%clk 0:02:03.7]}
32. Bxg7 {[%clk 0:03:29]} 32... Bc5 {[%clk 0:01:59.3]} 33. Bh6+ {[%clk
0:03:25.7]} 1-0

[Event "Live Chess"]
[Site "Chess.com"]
[Date "2024.06.02"]
[Round "-"]
[White "Dhaydon19"]
[Black "14141409"]
[Result "1-0"]
[WhiteElo "2660"]
[BlackElo "2549"]
[TimeControl "300"]
[EndTime "6:12:03 PDT"]
[Termination "Dhaydon19 won by resignation"]

1. g3 {[%clk 0:04:57.8]} 1... g6 {[%clk 0:04:57.6]} 2. Bg2 {[%clk 0:04:57.3]}
2... Bg7 {[%clk 0:04:57]} 3. d4 {[%clk 0:04:56.7]} 3... Nf6 {[%clk 0:04:53.9]}
4. c3 {[%clk 0:04:56.2]} 4... O-O {[%clk 0:04:51.8]} 5. Nf3 {[%clk 0:04:55.9]}
5... d6 {[%clk 0:04:50.9]} 6. O-O {[%clk 0:04:55.6]} 6... Nc6 {[%clk 0:04:49.3]}
7. Nbd2 {[%clk 0:04:54.9]} 7... e5 {[%clk 0:04:48.4]} 8. dxe5 {[%clk 0:04:54]}
8... dxe5 {[%clk 0:04:47.3]} 9. Qc2 {[%clk 0:04:52.8]} 9... Qe7 {[%clk 0:04:43]}
10. Ne4 {[%clk 0:04:50.7]} 10... Nxe4 {[%clk 0:04:40.9]} 11. Qxe4 {[%clk
0:04:49.7]} 11... f5 {[%clk 0:04:39.2]} 12. Qc4+ {[%clk 0:04:48.5]} 12... Be6
{[%clk 0:04:36.5]} 13. Qb5 {[%clk 0:04:47.5]} 13... Rab8 {[%clk 0:04:30.1]} 14.
Ng5 {[%clk 0:04:45.1]} 14... a6 {[%clk 0:04:22.4]} 15. Qa4 {[%clk 0:04:40.3]}
15... e4 {[%clk 0:04:21]} 16. Nxe6 {[%clk 0:04:38.5]} 16... Qxe6 {[%clk
0:04:20.5]} 17. Be3 {[%clk 0:04:37.8]} 17... Ne5 {[%clk 0:04:17.4]} 18. Rad1
{[%clk 0:04:35]} 18... Nc4 {[%clk 0:04:15.3]} 19. Bc1 {[%clk 0:04:33.9]} 19...
b5 {[%clk 0:04:12.7]} 20. Qc2 {[%clk 0:04:32.8]} 20... Nd6 {[%clk 0:04:07.7]}
21. b3 {[%clk 0:04:30.5]} 21... c5 {[%clk 0:04:04.5]} 22. Bf4 {[%clk 0:04:27.1]}
22... Rbd8 {[%clk 0:04:02.8]} 23. Rd2 {[%clk 0:04:22.9]} 23... Nf7 {[%clk
0:03:59.4]} 24. Rfd1 {[%clk 0:04:20.8]} 24... Rxd2 {[%clk 0:03:57.6]} 25. Rxd2
{[%clk 0:04:19.5]} 25... g5 {[%clk 0:03:55.3]} 26. Be3 {[%clk 0:04:17.7]} 26...
Be5 {[%clk 0:03:44]} 27. Bxc5 {[%clk 0:04:13.5]} 27... Rc8 {[%clk 0:03:42]} 28.
b4 {[%clk 0:04:11.8]} 28... Nd6 {[%clk 0:03:36.9]} 29. e3 {[%clk 0:04:08]} 29...
Nc4 {[%clk 0:03:35.6]} 30. Rd1 {[%clk 0:04:07]} 30... Bd6 {[%clk 0:03:26.9]} 31.
Bd4 {[%clk 0:04:02.6]} 31... Ne5 {[%clk 0:03:22]} 32. Qb3 {[%clk 0:03:58.2]}
32... Nc4 {[%clk 0:03:12.1]} 33. Kf1 {[%clk 0:03:55.2]} 33... Be5 {[%clk
0:03:04.2]} 34. Kg1 {[%clk 0:03:52.1]} 34... Bd6 {[%clk 0:02:53.1]} 35. Bf1
{[%clk 0:03:50]} 35... f4 {[%clk 0:02:50.8]} 36. a4 {[%clk 0:03:45.7]} 36...
fxe3 {[%clk 0:02:48.8]} 37. fxe3 {[%clk 0:03:40]} 37... Rf8 {[%clk 0:02:46.9]}
38. axb5 {[%clk 0:03:34.7]} 38... axb5 {[%clk 0:02:44.6]} 39. Qc2 {[%clk
0:03:32.2]} 39... Be5 {[%clk 0:02:36.2]} 40. Bxc4 {[%clk 0:03:30.1]} 40... bxc4
{[%clk 0:02:35.1]} 41. Qxe4 {[%clk 0:03:27.5]} 41... Re8 {[%clk 0:02:30.7]} 42.
Qxe5 {[%clk 0:03:25.2]} 42... Qxe5 {[%clk 0:02:30.3]} 43. Bxe5 {[%clk
0:03:24.9]} 43... Rxe5 {[%clk 0:02:29.1]} 44. Kf2 {[%clk 0:03:24.6]} 44... g4
{[%clk 0:02:28.2]} 45. Rd4 {[%clk 0:03:22.6]} 45... Rf5+ {[%clk 0:02:27.1]} 46.
Ke2 {[%clk 0:03:20.9]} 46... Rh5 {[%clk 0:02:25.9]} 47. Rxg4+ {[%clk 0:03:19.8]}
1-0

[Event "Live Chess"]
[Site "Chess.com"]
[Date "2024.06.02"]
[Round "-"]
[White "Queensandpawns"]
[Black "PavelChernomordik"]
[Result "0-1"]
[WhiteElo "2282"]
[BlackElo "2511"]
[TimeControl "300"]
[EndTime "6:12:17 PDT"]
[Termination "PavelChernomordik won by resignation"]

1. e4 {[%clk 0:04:57]} 1... g6 {[%clk 0:04:58.8]} 2. d4 {[%clk 0:04:55.5]} 2...
Bg7 {[%clk 0:04:57.8]} 3. Nc3 {[%clk 0:04:54.9]} 3... d6 {[%clk 0:04:57]} 4. Be3
{[%clk 0:04:53.3]} 4... a6 {[%clk 0:04:56.1]} 5. Qd2 {[%clk 0:04:52]} 5... b5
{[%clk 0:04:55]} 6. a3 {[%clk 0:04:51.2]} 6... Bb7 {[%clk 0:04:53.8]} 7. f3
{[%clk 0:04:49.5]} 7... Nd7 {[%clk 0:04:52.6]} 8. h4 {[%clk 0:04:49]} 8... h6
{[%clk 0:04:51.2]} 9. Nge2 {[%clk 0:04:47.5]} 9... e6 {[%clk 0:04:49.2]} 10.
O-O-O {[%clk 0:04:45.9]} 10... Nb6 {[%clk 0:04:47.8]} 11. d5 {[%clk 0:04:44.2]}
11... Nc4 {[%clk 0:04:45.8]} 12. Qd3 {[%clk 0:04:42]} 12... Nxe3 {[%clk
0:04:38.6]} 13. Qxe3 {[%clk 0:04:41.9]} 13... Qf6 {[%clk 0:04:26.8]} 14. dxe6
{[%clk 0:04:38.9]} 14... fxe6 {[%clk 0:04:24.4]} 15. Nf4 {[%clk 0:04:32.4]}
15... Ne7 {[%clk 0:04:17]} 16. Bd3 {[%clk 0:04:26.1]} 16... O-O {[%clk
0:04:10.3]} 17. Nce2 {[%clk 0:04:17.5]} 17... Qxb2+ {[%clk 0:04:08.1]} 18. Kd2
{[%clk 0:04:16.6]} 18... Bc8 {[%clk 0:03:50.8]} 19. g4 {[%clk 0:04:04.1]} 19...
Qxa3 {[%clk 0:03:47.9]} 20. g5 {[%clk 0:04:02.6]} 20... Qa5+ {[%clk 0:03:39.4]}
21. c3 {[%clk 0:04:00.2]} 21... h5 {[%clk 0:03:35.3]} 22. Bc2 {[%clk 0:03:54.8]}
22... d5 {[%clk 0:03:29.6]} 23. e5 {[%clk 0:03:46.9]} 23... Nf5 {[%clk
0:03:12.4]} 24. Bxf5 {[%clk 0:03:43.9]} 24... exf5 {[%clk 0:03:07.8]} 25. Nxg6
{[%clk 0:03:43.8]} 25... Re8 {[%clk 0:03:01.6]} 26. Nef4 {[%clk 0:03:36.1]}
26... Be6 {[%clk 0:02:51.2]} 27. Nxh5 {[%clk 0:03:25.3]} 27... d4 {[%clk
0:02:47.2]} 28. Qf4 {[%clk 0:03:18.8]} 28... Qxc3+ {[%clk 0:02:43.2]} 29. Ke2
{[%clk 0:03:17.5]} 29... Bf7 {[%clk 0:02:32.7]} 30. Nf6+ {[%clk 0:03:13.7]}
30... Bxf6 {[%clk 0:02:28.6]} 31. gxf6 {[%clk 0:03:13.6]} 31... Bxg6 {[%clk
0:02:22.7]} 32. Rdg1 {[%clk 0:03:09.1]} 32... Kf7 {[%clk 0:02:18.6]} 33. h5
{[%clk 0:02:59.4]} 33... Rxe5+ {[%clk 0:02:14.7]} 34. Qxe5 {[%clk 0:02:57.3]}
34... d3+ {[%clk 0:02:13.5]} 35. Kf2 {[%clk 0:02:52.7]} 35... Qxe5 {[%clk
0:02:11.8]} 36. hxg6+ {[%clk 0:02:51.7]} 36... Kxf6 {[%clk 0:02:10.7]} 37. g7
{[%clk 0:02:51]} 37... Rg8 {[%clk 0:02:05.8]} 38. Rh6+ {[%clk 0:02:48.5]} 38...
Kf7 {[%clk 0:02:04.7]} 0-1